bitfinex/quotes_ETHUSD_20250703
["timestamp","ask_amount","ask_price","bid_price","bid_amount"]
[1751553191834,3.85846605,2591.8,2590.0,3.86100386]
[1751553191835,0.04356239,2591.0,2590.4,3.86034831]
[1751553192022,3.866426,2590.9,2590.0,2.885]
[1751553192341,1.96234646,2593.4,2590.1,0.03860854]
[1751553192342,3.6954208,2591.4,2590.1,0.03860854]
[1751553192632,3.6954208,2591.7,2590.1,4.3633128]
[1751553192831,33.6954208,2591.7,2590.4,3.86040765]
[1751553193037,3.6954208,2591.7,2590.6,0.2558]
[1751553193327,3.6954208,2592.7,2590.9,10.0]
[1751553193547,3.6954208,2593.2,2591.6,10.0]
[1751553193746,33.6954208,2593.8,2591.9,0.2558]
[1751553193901,33.6954208,2593.8,2592.1,10.0]
[1751553194103,33.6954208,2594.2,2593.2,3.85609683]
[1751553194430,33.6954208,2594.2,2592.3,15.25200122]
[1751553194431,33.6954208,2594.2,2592.9,3.85668556]
[1751553194651,10.255,2594.7,2593.2,0.2583684]
[1751553194800,10.255,2594.7,2593.4,3.855942]
[1751553194801,33.6954208,2594.6,2593.4,3.855942]
[1751553195135,33.6954208,2594.9,2593.6,0.55]
[1751553195341,33.6954208,2594.9,2593.8,3.85534736]
[1751553195498,43.6954208,2595.6,2594.0,0.55]
[1751553195699,33.6954208,2595.6,2594.5,0.55]
[1751553195925,33.6954208,2595.6,2595.0,3.85344091]
[1751553196129,33.6954208,2595.6,2595.0,3.85353102]
[1751553196434,33.6954208,2595.6,2594.9,0.03853713]
[1751553196638,33.6954208,2595.9,2595.0,0.0142416]
[1751553196842,33.6954208,2596.4,2595.0,3.86771578]
[1751553197151,43.6954208,2596.1,2595.2,3.85326757]
[1751553197298,2.89512986,2596.4,2595.3,0.03853119]
[1751553197299,3.6954208,2596.4,2595.3,0.03853119]
[1751553197498,33.6954208,2596.1,2595.3,0.0142416]
[1751553197722,3.6954208,2596.0,2595.3,0.0142416]
[1751553197926,10.276,2596.3,2595.3,0.0142416]
[1751553197927,3.85297064,2595.4,2595.3,0.0142416]
[1751553198129,7.54839144,2595.4,2595.3,0.0142416]
[1751553198331,3.6954208,2595.4,2595.3,0.0142416]
[1751553198950,7.54839144,2595.4,2595.3,0.0142416]
[1751553199118,3.85215594,2596.0,2595.3,0.0142416]
[1751553199119,33.6954208,2596.0,2595.3,0.0142416]
[1751553199433,33.6954208,2595.7,2595.3,0.0142416]
[1751553199637,3.6954208,2595.4,2595.3,0.0142416]
[1751553199842,7.54839144,2595.4,2595.3,0.0142416]
[1751553200409,33.6954208,2595.9,2595.3,0.0142416]
[1751553200605,7.54780875,2595.8,2595.3,0.0142416]
[1751553200854,3.6954208,2595.7,2595.3,0.0142416]
[1751553201010,3.85262845,2595.7,2595.3,0.0142416]
[1751553201210,3.6954208,2595.6,2595.3,0.0142416]
[1751553201428,3.6954208,2595.7,2595.3,0.0142416]
[1751553201642,3.6954208,2595.5,2595.4,3.85297064]
[1751553202143,0.02,2595.6,2595.5,3.85282219]
[1751553202441,0.02,2595.6,2595.5,4.44135041]
[1751553202610,0.02,2595.6,2595.5,4.45559201]
[1751553204619,3.8888,2597.4,2595.6,0.55]
[1751553204620,10.176,2597.1,2595.6,0.55]
[1751553204844,1.68730305,2597.8,2595.8,0.55]
[1751553205041,1.68730305,2597.8,2595.7,0.58852525]
[1751553205042,3.85055504,2597.1,2596.4,3.85139584]
[1751553205212,10.0,2597.7,2596.2,3.073]
[1751553205538,3.85077652,2596.9,2596.3,3.8514917]
[1751553205779,3.84941104,2597.8,2596.4,0.03851486]
[1751553205780,3.85000385,2597.4,2596.4,0.03851486]
[1751553205912,3.073,2598.1,2596.2,0.0142416]
[1751553205913,3.84881841,2598.2,2596.2,0.0142416]
[1751553206106,3.84936981,2597.9,2596.3,0.03851635]
[1751553206342,3.85052749,2597.1,2596.4,3.85141771]
[1751553206519,3.85074717,2596.9,2596.5,0.03851338]
[1751553206723,3.85074717,2596.9,2596.5,0.05275498]
[1751553206920,3.84936981,2597.9,2596.5,0.05275498]
[1751553207155,3.85084587,2596.9,2596.5,0.0142416]
[1751553207454,3.84970742,2597.6,2596.5,0.0142416]
[1751553207627,3.85098657,2596.8,2596.5,0.0142416]
[1751553207826,3.85087707,2596.9,2596.5,0.0142416]
[1751553208153,3.85091183,2596.8,2596.5,0.0142416]
[1751553208449,10.142,2597.6,2596.5,0.0142416]
[1751553208643,3.85106951,2596.7,2596.5,0.0142416]
[1751553208962,30.0,2597.4,2596.5,0.0142416]
[1751553209111,3.85041235,2597.2,2596.5,0.0142416]
[1751553209449,3.85119001,2596.6,2596.5,0.0142416]
[1751553210251,3.85104627,2596.7,2596.5,0.0142416]
[1751553210410,3.85119001,2596.6,2596.5,0.0142416]
[1751553211511,3.85076952,2596.9,2596.5,0.0142416]
[1751553211512,30.0,2596.9,2596.5,0.0142416]
[1751553211713,13.94259684,2597.0,2596.5,0.0142416]
[1751553211916,3.85096929,2596.8,2596.5,0.0142416]
[1751553212142,3.85090854,2596.8,2596.5,0.0142416]
[1751553212413,3.85080624,2596.9,2596.5,0.0142416]
[1751553213233,14.68782841,2597.2,2596.5,0.0142416]
[1751553213414,3.85045572,2597.1,2596.5,3.86551119]
[1751553213611,10.8215,2597.2,2596.5,0.0142416]
[1751553213814,3.85069236,2597.0,2596.5,0.0142416]
[1751553214147,5.17131362,2597.5,2596.7,3.85093177]
[1751553214337,5.17131362,2597.5,2596.8,0.03850893]
[1751553214338,3.84985563,2597.5,2596.8,0.03850893]
[1751553214644,3.85035107,2597.2,2596.8,0.03850893]
[1751553214823,3.85035107,2597.2,2596.8,0.05275053]
[1751553215017,14.71013326,2597.7,2596.8,0.05275053]
[1751553215018,30.0,2597.6,2596.8,0.05275053]
[1751553215245,3.84987402,2597.5,2596.9,3.85061959]
[1751553215416,3.84987402,2597.5,2597.0,3.88897616]
[1751553215417,30.0,2597.5,2597.0,3.88897616]
[1751553215613,3.85074511,2596.9,2596.8,1e-08]
[1751553216740,33.88925107,2596.9,2596.8,1e-08]
[1751553216937,33.85074511,2596.9,2596.8,1e-08]
[1751553217755,43.90474511,2596.9,2596.8,1e-08]
[1751553218116,43.88874511,2596.9,2596.8,1e-08]
[1751553218313,47.73763759,2596.9,2596.8,1e-08]
[1751553219057,48.08422244,2596.9,2596.8,1e-08]
[1751553220251,51.05222244,2596.9,2596.8,1e-08]
[1751553220427,51.0524758,2596.9,2596.8,1e-08]
[1751553220628,21.0344758,2596.9,2596.8,1e-08]
[1751553220944,51.0344758,2596.9,2596.8,1e-08]
[1751553221147,50.67463759,2596.9,2596.8,1e-08]
[1751553221346,30.0,2596.8,2595.7,0.03852525]
[1751553221548,17.17137085,2596.9,2595.7,0.03852525]
[1751553221549,40.0,2596.6,2595.7,0.03852525]
[1751553221745,30.0,2596.4,2595.7,0.03852525]
[1751553222062,0.03850596,2596.3,2595.6,0.1]
[1751553222352,0.03850596,2596.3,2595.7,0.03852525]
[1751553222353,33.85201545,2596.1,2595.7,0.03852525]
[1751553222527,3.85215929,2596.0,2595.7,0.03852525]
[1751553222850,3.85252533,2595.7,2595.6,0.1]
[1751553223041,3.89103129,2595.7,2595.6,0.1]
[1751553223546,3.89103129,2595.7,2595.5,0.01]
[1751553223734,30.0,2595.6,2595.5,0.01]
[1751553224340,30.0,2595.5,2594.5,0.01]
[1751553224650,1.10488314,2595.6,2594.5,0.01]
[1751553224651,3.85415863,2594.6,2594.5,0.01]
[1751553224856,13.82546304,2594.8,2594.5,0.01]
[1751553225151,3.85415863,2594.6,2594.5,0.01]
[1751553225338,33.89266459,2594.6,2594.5,0.01]
[1751553225648,33.85415863,2594.6,2594.5,0.01]
[1751553225869,33.75415863,2594.6,2594.5,0.01]
[1751553226359,43.67415863,2594.6,2594.5,0.01]
[1751553226559,33.75415863,2594.6,2594.5,0.01]
[1751553226722,3.75057855,2596.6,2594.5,3.86419174]
[1751553226723,30.0,2595.3,2594.5,3.86419174]
[1751553226922,2.992,2595.9,2594.6,0.03854158]
[1751553227124,30.0,2595.4,2594.5,0.01]
[1751553227327,0.38691799,2595.3,2594.5,0.01]
[1751553227559,3.85415863,2594.6,2594.5,0.01]
[1751553227940,3.89266459,2594.6,2594.5,0.01]
[1751553228338,33.85415863,2594.6,2594.5,0.01]
[1751553228539,34.04615863,2594.6,2594.5,0.01]
[1751553229461,36.48139536,2594.6,2594.5,0.01]
[1751553229664,34.04615863,2594.6,2594.5,0.01]
[1751553230550,30.0,2594.6,2594.5,0.01]
[1751553230756,33.85415863,2594.6,2594.5,0.01]
[1751553230958,13.71815863,2594.6,2594.5,0.01]
[1751553231157,0.7722,2596.1,2594.8,0.2558]
[1751553231358,0.19295787,2596.7,2595.9,0.2558]
[1751553231359,0.88561843,2596.7,2595.9,0.2558]
[1751553231542,0.88561843,2596.7,2596.0,0.0385208]
[1751553231543,3.85114344,2596.7,2596.0,0.0385208]
[1751553231743,3.85113869,2596.7,2595.9,0.2558]
[1751553231964,3.85119001,2596.6,2595.2,0.2558]
[1751553232267,3.8516517,2596.3,2595.6,3.85263534]
[1751553232471,30.0,2596.2,2595.6,3.85263534]
[1751553232766,10.026,2596.2,2595.7,3.85248842]
[1751553232968,30.0,2596.1,2595.2,0.2558]
[1751553233155,3.85223298,2595.9,2595.3,3.85311909]
[1751553233336,3.852495,2595.8,2595.0,3.85346529]
[1751553233541,3.85268238,2595.6,2595.0,3.85346529]
[1751553233836,3.85268238,2595.6,2595.0,3.85352357]
[1751553233837,30.0,2595.6,2595.0,3.85352357]
[1751553234036,3.85292834,2595.5,2594.9,3.85364604]
[1751553234237,30.0,2595.6,2594.6,0.2558]
[1751553234468,40.0,2595.4,2594.5,0.01]
[1751553234670,30.0,2595.2,2594.5,0.01]
[1751553235184,30.0,2595.0,2594.5,0.01]
[1751553235475,40.0,2594.7,2594.5,0.01]
[1751553235637,39.988,2594.6,2594.5,0.01]
[1751553236069,30.0,2595.0,2594.8,3.85376628]
[1751553236373,30.0,2595.6,2595.2,3.85324597]
[1751553236675,30.0,2595.6,2594.5,0.01]
[1751553236676,30.0,2595.5,2594.5,0.01]
[1751553236845,30.0,2595.5,2594.6,3.85413373]
[1751553237045,30.0,2595.5,2594.5,0.01]
[1751553237766,30.0,2594.9,2594.5,0.01]
[1751553237963,9.966,2594.8,2594.5,0.01]
[1751553238272,9.957,2594.7,2594.5,0.01]
[1751553238653,30.0,2595.5,2594.5,3.86429245]
[1751553238872,30.0,2595.4,2594.6,3.85415863]
[1751553239042,30.0,2595.2,2594.6,3.85406824]
[1751553239371,30.0,2595.2,2594.5,0.01]
[1751553239372,3.07702,2595.5,2594.8,3.85378486]
[1751553239573,0.7702,2595.7,2594.5,0.01]
[1751553239574,30.0,2595.6,2594.5,0.01]
[1751553239771,30.0,2595.6,2594.6,3.85414814]
[1751553239973,30.0,2595.3,2594.5,0.01]
[1751553240173,9.927,2595.2,2594.5,0.01]
[1751553240382,2.91,2595.5,2594.5,0.01]
[1751553240383,3.85415863,2594.6,2594.5,0.01]
[1751553240554,16.68715863,2594.6,2594.5,0.01]
[1751553240876,0.5,2596.6,2594.5,0.01]
[1751553241178,0.192,2595.0,2594.5,0.202]
[1751553241478,30.0,2594.8,2594.5,0.202]
[1751553241692,30.0,2594.7,2594.5,0.202]
[1751553241855,13.75815863,2594.6,2594.5,0.202]
[1751553242182,2.91,2594.6,2594.5,0.01]
[1751553242394,0.192,2595.2,2594.5,0.202]
[1751553242543,3.85284863,2595.5,2595.0,3.85346964]
[1751553242744,40.0,2595.4,2595.1,0.192]
[1751553243053,30.0,2595.1,2594.7,0.192]
[1751553243387,30.0,2595.0,2594.7,0.192]
[1751553244061,33.8536161,2595.0,2594.7,0.192]
[1751553244256,12.787,2594.9,2594.7,0.192]
[1751553244589,12.787,2594.9,2594.5,0.04854307]
[1751553244590,12.782,2594.9,2594.5,0.01]
[1751553244774,12.782,2594.9,2594.8,0.192]
[1751553244969,9.872,2594.9,2594.8,0.192]
[1751553245167,9.864,2594.9,2594.5,0.01]
[1751553245481,9.864,2594.9,2594.8,0.192]
[1751553245677,9.859,2595.0,2594.8,0.192]
[1751553245979,9.859,2595.0,2594.8,4.04584576]
[1751553246175,30.0,2595.3,2594.8,0.192]
[1751553246381,0.192,2595.6,2594.9,0.03853713]
[1751553246574,0.192,2595.6,2595.2,0.192]
[1751553246891,2.91,2595.6,2595.4,3.85295952]
[1751553247068,9.845,2595.5,2595.3,3.85302734]
[1751553247389,2.91,2595.7,2595.2,3.89174785]
[1751553247707,0.02,2595.8,2595.7,3.85252533]
[1751553247857,0.02,2595.8,2595.7,0.192]
[1751553248571,0.02,2595.8,2595.7,4.04452533]
[1751553248792,0.02,2595.8,2595.7,4.63305058]
[1751553248994,0.02,2595.8,2595.7,5.69889553]
[1751553249286,1e-08,2595.8,2595.7,5.73742078]
[1751553249487,1e-08,2595.8,2595.7,5.69889553]
[1751553250490,1e-08,2595.8,2595.7,5.73742078]
[1751553250881,1e-08,2595.8,2595.7,5.69889553]
[1751553251397,1e-08,2595.8,2595.7,5.73742078]
[1751553251690,1e-08,2595.8,2595.7,5.69889553]
[1751553251891,1e-08,2595.8,2595.7,5.73742078]
[1751553252193,1e-08,2595.8,2595.7,5.69889553]
[1751553252774,1e-08,2595.8,2595.7,5.73742078]
[1751553253283,1e-08,2595.8,2595.7,5.69889553]
[1751553253483,1e-08,2595.8,2595.7,5.73742078]
[1751553254665,1e-08,2595.8,2595.7,5.69889553]
[1751553256209,1e-08,2595.8,2595.7,5.73742078]
[1751553256373,1e-08,2595.8,2595.7,15.73742078]
[1751553256572,1e-08,2595.8,2595.7,15.69889553]
[1751553256875,0.02,2596.9,2596.8,3.8508934]
[1751553257077,0.02,2596.9,2596.8,4.0428934]
[1751553257277,0.02,2596.9,2596.8,4.63140233]
[1751553257505,0.02,2596.9,2596.8,5.47964541]
[1751553257703,0.02,2596.9,2596.8,1.59024308]
[1751553257909,0.02,2596.9,2596.8,0.742]
[1751553258280,0.02,2596.9,2596.8,4.08140233]
[1751553258586,0.02,2596.9,2596.8,4.63140233]
[1751553258997,0.02,2596.9,2596.8,4.5928934]
[1751553259478,0.02,2596.9,2596.8,0.742]
[1751553259679,0.02,2596.9,2596.8,0.192]
[1751553259879,0.02,2596.9,2596.8,0.23050893]
[1751553260391,0.02,2596.9,2596.8,4.08140233]
[1751553260590,0.02,2596.9,2596.8,1.02222916]
[1751553260798,0.02,2596.9,2596.7,0.55]
[1751553261000,0.02,2596.9,2596.4,3.85147693]
[1751553261280,0.02,2596.9,2596.7,3.85103853]
[1751553261480,0.02,2596.9,2596.8,3.88940233]
[1751553261688,0.02,2596.9,2596.8,4.43940233]
[1751553261880,0.02,2596.9,2596.8,5.52424642]
[1751553263911,0.02,2596.9,2596.8,5.48573749]
[1751553264110,0.02,2596.9,2596.8,5.52424642]
[1751553264418,0.02,2597.1,2597.0,4.40059684]
[1751553264722,0.02,2598.0,2597.0,4.40059684]
[1751553264723,0.02,2598.0,2597.7,3.84953418]
[1751553265025,0.02,2598.0,2597.9,3.84926286]
[1751553265188,0.02,2598.0,2597.8,0.58849411]
[1751553265515,0.02,2598.0,2597.9,0.55]
[1751553266017,0.02,2598.0,2597.7,0.2558]
[1751553266217,0.02,2598.0,2597.8,0.55]
[1751553266417,0.02,2598.0,2597.9,4.43775548]
[1751553267135,0.7851,2599.4,2598.7,3.84797021]
[1751553267136,4.63216697,2599.4,2598.7,3.84797021]
[1751553267325,3.84726312,2599.3,2598.7,3.84797021]
[1751553267631,3.84734029,2599.2,2598.6,4.3981312]
[1751553267836,3.84749722,2599.1,2598.6,4.39818732]
[1751553268131,3.84739276,2599.2,2598.7,0.55]
[1751553268306,4.63219158,2599.4,2598.7,0.55]
[1751553268307,3.84749228,2599.1,2598.7,0.55]
[1751553268510,3.84773671,2599.0,2598.5,0.55]
[1751553268711,4.63218832,2599.4,2598.4,0.55]
[1751553268712,3.84718962,2599.3,2598.4,0.55]
[1751553269024,3.84769387,2599.0,2598.4,4.3984898]
[1751553269226,3.84781626,2598.9,2598.4,0.55]
[1751553269421,3.84745404,2599.2,2598.4,0.55]
[1751553269620,3.84764218,2599.0,2598.4,4.39846524]
[1751553269947,3.84756347,2599.1,2598.5,3.84836864]
[1751553270636,3.84756347,2599.1,2599.0,0.192]
[1751553272020,3.85756347,2599.1,2599.0,0.192]
[1751553272338,4.62699924,2599.1,2598.7,0.192]
[1751553272539,3.84792981,2598.8,2598.7,0.192]
[1751553273638,0.8284,2598.6,2597.7,0.2558]
[1751553273838,0.8284,2598.6,2597.8,0.35643]
[1751553273839,3.84889248,2598.5,2597.8,0.35643]
[1751553274014,3.84889248,2598.5,2598.0,0.192]
[1751553274015,3.84896655,2598.1,2598.0,0.192]
[1751553274336,0.8284,2598.6,2597.3,0.2558]
[1751553274337,0.8284,2598.6,2597.4,0.03850003]
[1751553274525,40.0,2598.8,2598.5,0.192]
[1751553274725,2.742,2599.0,2597.7,0.03849559]
[1751553274726,40.0,2598.6,2597.7,0.03849559]
[1751553274929,3.84874468,2598.3,2597.7,3.84953407]
[1751553275103,3.84888381,2598.2,2597.6,3.84962924]
[1751553275308,3.84922204,2598.0,2597.4,3.84991771]
[1751553275607,3.8490451,2598.1,2597.5,0.35715148]
[1751553275806,3.8490451,2598.1,2597.6,4.20684122]
[1751553276029,3.8490451,2598.1,2597.7,0.35715148]
[1751553276308,3.8490451,2598.1,2597.2,3.85026509]
[1751553276309,3.84963676,2597.7,2597.2,3.85026509]
[1751553276508,3.84963676,2597.7,2597.3,0.35749533]
[1751553276710,30.0,2598.0,2597.4,0.35749533]
[1751553276911,3.84916641,2598.0,2597.0,3.85051464]
[1751553277128,3.84955531,2597.8,2597.3,3.85011615]
[1751553277336,6.5909202,2598.2,2597.5,3.84985563]
[1751553277541,3.84898387,2598.1,2597.6,4.24565479]
[1751553277840,3.84898387,2598.1,2597.6,0.03849707]
[1751553278039,6.59082888,2598.2,2597.6,0.03849707]
[1751553278244,3.84882888,2598.2,2597.7,3.84955191]
[1751553278448,0.815,2598.3,2597.8,0.03849411]
[1751553278646,3.8488856,2598.2,2597.8,0.03849411]
[1751553278821,0.815,2598.3,2597.8,0.03849411]
[1751553278822,4.66367813,2598.3,2597.8,0.03849411]
[1751553279022,6.59026458,2598.6,2597.8,0.03849411]
[1751553279023,3.84834773,2598.6,2597.9,0.55]
[1751553279221,3.84818759,2598.7,2598.1,3.84892714]
[1751553279424,7.69703733,2598.7,2598.2,3.84880908]
[1751553279735,3.84825152,2598.6,2598.1,3.84888572]
[1751553280321,2.742,2598.9,2597.6,0.2558]
[1751553280648,3.84854469,2598.4,2597.9,3.84919913]
[1751553281016,3.8487403,2598.3,2597.8,3.84939108]
[1751553281531,3.84891204,2598.2,2597.7,3.84948361]
[1751553281837,3.84891204,2598.2,2597.7,3.84948784]
[1751553282643,1.52246017,2598.2,2597.2,0.2558]
[1751553282847,3.84930281,2597.9,2597.4,3.84990875]
[1751553283043,1.52246017,2598.2,2596.8,0.2558]
[1751553283044,3.84973746,2597.6,2596.8,0.2558]
[1751553283230,40.0,2598.1,2597.1,3.85033851]
[1751553283231,3.84969955,2597.7,2597.1,3.85033851]
[1751553283633,3.8494561,2597.8,2597.2,3.85026484]
[1751553283934,1.52246017,2598.2,2597.3,0.03850152]
[1751553284113,3.8490301,2598.1,2597.6,3.84963213]
[1751553284314,3.8493004,2597.9,2597.6,0.02]
[1751553284751,3.8493004,2597.9,2597.8,0.192]
[1751553284910,3.84932328,2597.9,2597.6,0.212]
[1751553285444,4.27547785,2598.1,2597.6,3.86963936]
[1751553285615,4.27547785,2598.1,2597.8,0.192]
[1751553286147,3.84926286,2597.9,2597.8,0.192]
[1751553286847,3.84947483,2597.8,2597.6,0.02]
[1751553287054,3.8491572,2598.0,2597.6,0.02]
[1751553287218,3.8491572,2598.0,2597.7,0.192]
[1751553287413,0.42644602,2598.1,2597.7,0.192]
[1751553287414,4.27548815,2598.1,2597.7,0.192]
[1751553287949,3.84917584,2598.0,2597.7,0.192]
[1751553288259,3.84926758,2597.9,2597.7,0.192]
[1751553289254,3.84920675,2598.0,2597.7,0.192]
[1751553289691,4.27548278,2598.1,2597.6,3.86968251]
[1751553289825,4.27548278,2598.1,2597.9,0.192]
[1751553290146,0.42644602,2598.1,2597.9,0.192]
[1751553290363,2.674,2599.1,2598.0,0.03849114]
[1751553290564,0.192,2599.0,2598.6,0.192]
[1751553290722,0.55525,2599.0,2598.6,0.192]
[1751553291045,0.01,2599.1,2599.0,3.8476337]
[1751553291958,0.01,2599.1,2599.0,4.0396337]
[1751553292246,0.01,2599.1,2599.0,4.07811003]
[1751553293498,0.01,2599.1,2599.0,4.62811003]
[1751553294800,0.01,2599.1,2599.0,4.88391003]
[1751553295499,0.86375065,2599.3,2599.2,14.39733764]
[1751553295687,0.01,2600.2,2600.0,3.84605592]
[1751553296001,0.01,2600.2,2600.1,3.84600592]
[1751553296169,0.01,2600.2,2600.1,4.03800592]
[1751553296368,0.01,2600.2,2600.1,0.192]
[1751553296880,0.66187931,2600.2,2599.4,9.292]
[1751553297085,0.66187931,2600.2,2599.9,0.192]
[1751553297086,3.84615384,2600.0,2599.9,0.192]
[1751553298061,3.84600592,2600.1,2599.0,0.2558]
[1751553298062,3.84659762,2599.8,2599.6,0.192]
[1751553298267,3.84659768,2599.7,2599.6,0.192]
[1751553298505,0.66187931,2600.2,2599.6,0.192]
[1751553298703,0.01,2600.2,2599.6,4.03869933]
[1751553298964,3.85593703,2600.2,2599.9,0.192]
[1751553299163,3.85592215,2600.2,2599.9,0.192]
[1751553299364,3.84600996,2600.1,2599.9,0.192]
[1751553299800,3.85593213,2600.2,2599.9,0.192]
[1751553300004,0.01,2600.2,2599.9,0.192]
[1751553300202,0.01,2600.2,2600.0,0.03846153]
[1751553300386,0.01,2600.2,2599.3,0.55]
[1751553300387,0.01,2600.2,2600.1,0.192]
[1751553300777,4.24143685,2600.2,2600.1,0.192]
[1751553301078,3.84626234,2600.0,2599.9,0.192]
[1751553302507,3.84615384,2600.0,2599.9,0.192]
[1751553302667,0.01,2600.2,2599.9,0.192]
[1751553303215,3.84611546,2600.1,2600.0,0.192]
[1751553303501,3.84600592,2600.1,2600.0,0.192]
[1751553303870,3.84616212,2600.0,2599.9,0.192]
[1751553304669,3.84616212,2600.0,2598.8,3.84789256]
[1751553304670,30.0,2599.6,2598.6,0.2558]
[1751553305000,3.84706949,2599.4,2599.2,0.192]
[1751553305170,10.0,2599.6,2599.2,0.192]
[1751553305365,3.84718962,2599.3,2599.2,0.192]
[1751553305695,5.25059749,2599.6,2598.3,9.204]
[1751553305696,40.0,2599.5,2598.3,9.204]
[1751553305998,3.84647065,2599.8,2599.5,0.192]
[1751553306207,0.7826,2599.9,2599.5,0.192]
[1751553306392,2.584,2600.0,2599.7,0.192]
[1751553306570,6.43023625,2600.0,2599.7,0.192]
[1751553306774,6.43025188,2600.0,2599.7,0.192]
[1751553306976,3.84636211,2599.9,2599.7,0.192]
[1751553307401,6.43021177,2600.0,2599.7,0.192]
[1751553307602,0.202,2600.2,2599.7,0.23046597]
[1751553307806,0.01,2600.2,2600.1,0.192]
[1751553308004,3.85585801,2600.2,2600.1,0.192]
[1751553308497,0.01,2600.2,2600.1,0.192]
[1751553308800,3.85585801,2600.2,2600.1,0.192]
[1751553309005,0.01,2600.2,2600.1,4.03800592]
[1751553309193,0.01,2600.2,2600.1,4.58800592]
[1751553309503,0.01,2600.2,2600.1,4.62646597]
[1751553311291,0.01,2600.2,2600.1,4.58800592]
[1751553312479,0.01,2600.2,2600.1,4.62646597]
[1751553312997,0.01,2600.2,2600.1,5.47372561]
[1751553313195,0.01,2600.2,2600.1,5.72952561]
[1751553313395,0.01,2600.2,2600.1,5.53752561]
[1751553313904,1e-08,2600.2,2600.1,14.62206556]
[1751553315409,1e-08,2600.2,2600.1,5.49906556]
[1751553315577,1e-08,2600.2,2600.1,14.62006556]
[1751553317007,1e-08,2600.2,2600.1,5.49906556]
[1751553317184,1e-08,2600.2,2600.1,5.53752561]
[1751553317390,1e-08,2600.2,2600.1,3.84600592]
[1751553317789,1e-08,2600.2,2600.1,4.43446597]
[1751553318894,1e-08,2600.2,2600.1,14.69026597]
[1751553319117,1e-08,2600.2,2600.1,14.65180592]
[1751553320511,1e-08,2600.2,2600.1,23.71180592]
[1751553320711,1e-08,2600.2,2600.1,26.41399946]
[1751553321212,1e-08,2600.2,2600.1,26.60793081]
[1751553321941,3.8461402,2600.1,2599.5,3.84675296]
[1751553322231,3.8461402,2600.1,2599.3,0.2758]
[1751553322232,1.94955707,2600.0,2599.3,0.02]
[1751553322593,1e-08,2600.2,2599.3,9.079]
[1751553322906,1e-08,2600.2,2599.4,0.03847041]
[1751553323113,1e-08,2600.2,2599.3,0.02]
[1751553323114,3.84687679,2599.6,2599.3,0.02]
[1751553323324,30.00000001,2600.2,2599.5,0.192]
[1751553323536,0.192,2600.1,2599.5,0.192]
[1751553323943,3.84652018,2599.8,2599.3,3.90562025]
[1751553324252,3.84652018,2599.8,2599.7,0.192]
[1751553324453,1e-08,2600.2,2600.1,3.84600592]
[1751553324636,1e-08,2600.2,2599.7,9.24]
[1751553324637,1e-08,2600.2,2599.9,0.55]
[1751553324839,1e-08,2600.2,2600.0,0.23046153]
[1751553325162,1e-08,2600.2,2600.1,9.049]
[1751553325318,1e-08,2600.2,2600.1,13.44500592]
[1751553325785,1e-08,2600.2,2600.1,23.44500592]
[1751553326861,1e-08,2600.2,2600.1,23.70080592]
[1751553327044,1e-08,2600.2,2600.1,25.62700135]
[1751553327748,1e-08,2600.2,2600.1,16.57800135]
[1751553327961,1e-08,2600.2,2600.1,14.65180592]
[1751553328258,1e-08,2600.2,2600.1,23.67180592]
[1751553328917,0.02,2601.4,2600.1,23.67180592]
[1751553328918,0.02,2601.4,2601.3,4.39423173]
[1751553329118,0.02,2601.4,2601.3,9.576]
[1751553330028,0.02,2601.4,2601.3,9.031]
[1751553330229,0.02,2601.4,2601.0,0.55]
[1751553330442,0.01,2601.3,2601.1,9.025]
[1751553330642,3.85427709,2601.3,2601.1,9.025]
[1751553330851,4.66068142,2601.2,2600.6,3.84511972]
[1751553331150,4.66068142,2601.2,2600.7,9.017]
[1751553331151,3.84491935,2600.9,2600.7,9.017]
[1751553331359,1.66979168,2601.2,2600.7,9.015]
[1751553331360,3.84474069,2601.0,2600.7,9.015]
[1751553331663,3.84462691,2601.1,2600.8,9.015]
[1751553331822,3.84470477,2601.0,2600.8,9.015]
[1751553332021,3.84459878,2601.1,2600.8,9.015]
[1751553332754,0.8163,2601.2,2600.8,9.015]
[1751553332755,4.66077016,2601.2,2600.8,9.015]
[1751553333060,4.66077016,2601.2,2601.0,0.55]
[1751553333061,0.8163,2601.2,2601.0,0.55]
[1751553333425,0.01,2601.3,2601.1,8.999]
[1751553333636,0.01,2601.3,2601.2,4.4328233]
[1751553335041,0.01,2601.3,2601.2,13.37937951]
[1751553336250,0.01,2601.3,2600.5,10.0]
[1751553336557,0.01,2601.3,2600.9,3.84472292]
[1751553336757,0.01,2601.3,2601.0,12.85399818]
[1751553336952,0.01,2601.3,2601.1,0.55]
[1751553337150,0.01,2601.3,2601.2,4.39437951]
[1751553337538,0.01,2601.3,2601.2,0.55]
[1751553338074,0.01,2601.3,2601.2,4.39437951]
[1751553338275,0.01,2601.3,2601.2,5.94514325]
[1751553338579,0.01,2601.3,2601.2,5.98358704]
[1751553339075,0.01,2601.3,2601.2,6.17558704]
[1751553339465,0.01,2601.3,2601.2,6.13714325]
[1751553339776,1e-08,2601.4,2601.3,4.39423173]
[1751553339977,1e-08,2601.4,2601.3,24.78566615]
[1751553340369,1e-08,2601.4,2601.3,25.04146615]
[1751553340569,1e-08,2601.4,2601.3,34.85803291]
[1751553340786,1e-08,2601.4,2601.3,35.05353146]
[1751553340987,0.00612,2602.7,2602.6,4.39231153]
[1751553341288,0.8049,2602.9,2602.6,4.39231153]
[1751553341289,0.7951,2603.7,2603.2,3.84139436]
[1751553341587,0.7739,2603.1,2601.6,4.09946434]
[1751553341749,3.84256863,2602.5,2601.7,11.446]
[1751553341953,0.7739,2602.8,2601.7,11.446]